Cogmind - Beta 16.1 @@@ ROGUE MODE // 2026.04.20 @ 03:47:01 Player: Parkagirl Result: Destroyed self with Mini Grenade Launcher Performance ------------- Evolutions (1) 500 Regions Visited (2) 400 Robots Destroyed (20) 100 Value Destroyed (371) 371 Prototype IDs (0) 0 Alien Tech Used (0) 0 Bonus (0) 0 TOTAL SCORE: 1371 Bonus ------- None Cogmind --------- Core Integrity 0/400 Matter 64/300 Energy 100/100 System Corruption 0% Temperature Cool (0) Movement Core (50) Location -9/Materials Parts ------- > --- POWER (1) -------- (None) > --- PROPULSION (4) --- (None) > --- UTILITY (2) ------ (None) > --- WEAPON (2) ------- Mini Grenade Launcher > --- INVENTORY (5) ---- Ion Engine Aluminum Leg Hardened Medium Armor Plating Hardened Medium Armor Plating Field Laser Peak State ------------ > --- POWER ------------ Light Nuclear Core > --- PROPULSION ------- Aluminum Leg Aluminum Leg Aluminum Leg Aluminum Leg > --- UTILITY ---------- Small Storage Unit Seismic Detector > --- WEAPON ----------- Field Laser Field Laser > --- INVENTORY -------- Ion Engine Ion Engine Light Treads Light Treads Aluminum Leg Field Laser Field Laser Light Cannon [Rating: 16] Favorites ----------- Power Light Nuclear Core Engine Ion Engine Power Core Light Nuclear Core Propulsion Aluminum Leg Leg Aluminum Leg Wheel Wheel Utility Seismic Detector Device Seismic Detector Storage Small Storage Unit Weapon Light Assault Rifle Energy Gun Field Laser Ballistic Gun Light Assault Rifle Ballistic Cannon Light Cannon Launcher Mini Grenade Launcher Build | -11 -10 -9 ------- Run | Yrd Mat Mat Slots Evolved 2 | . . 2 Power . | . . . Propulsion 2 | . . 2 Utility . | . . . Weapon . | . . . Parts Attached 17 | 7 3 7 Power 2 | 1 1 . Engine 1 | 1 . . Core 1 | . 1 . Reactor . | . . . Propulsion 6 | 2 2 2 Treads . | . . . Leg 4 | . 2 2 Wheel 2 | 2 . . Hover . | . . . Flight . | . . . Utility 3 | 2 . 1 Device 1 | 1 . . Storage 2 | 1 . 1 Processor . | . . . Hackware . | . . . Protection . | . . . Artifact . | . . . Weapon 6 | 2 . 4 Energy Gun 2 | . . 2 Energy Cannon . | . . . Ballistic Gun 2 | 2 . . Ballistic Cannon 1 | . . 1 Launcher 1 | . . 1 Special Weapon . | . . . Impact Weapon . | . . . Slashing Weapon . | . . . Piercing Weapon . | . . . Special Melee Weapon . | . . . Unidentified Prototypes . | . . . Parts Lost 5 | . 1 4 Power 2 | . . 2 Propulsion 3 | . 1 2 Utility . | . . . Weapon . | . . . Highest Loss Streak 4 | . 1 4 To Critical Strikes . | . . . Average Backups 6 | 3 7 6 Power 1 | . 1 1 Propulsion 2 | 2 4 1 Utility . | . . 1 Weapon 1 | . 1 2 Tool/Special . | . . . Unused Backups 9 | . . 9 Power 1 | . . 1 Propulsion 3 | . . 3 Utility 2 | . . 2 Weapon 3 | . . 3 Tool/Special . | . . . Average Slot Usage (%) 85 | . 94 79 Engine 3 | . 7 . Core 6 | . 6 7 Leg 25 | . 14 34 Wheel 4 | . 9 . Device 11 | . 14 8 Storage 11 | . 14 8 Energy Gun 6 | . . 10 Ballistic Gun 15 | . 27 6 Peak Build Rating 16 | 7 9 16 Average Rating 9 | 5 7 11 On Entrance 5 | . 7 9 Avg Prop Armor Cover (%) . | . . . Naked Turns 24 | . . 24 Heaviest Build 22 | 14 14 22 Greatest Support 40 | 20 20 40 Greatest Overweight (x) 4 | 1 4 . Average Overweight (x) . | . . . Largest Inventory Capacity 10 | 8 8 10 Average Capacity 8 | 7 8 8 Most Carried 8 | 6 8 8 Average Carried 6 | 4 7 6 Final Capacity 8 | 8 8 5 Final Carried 8 | 6 8 5 Class Distribution -------------------- 52% | Scavenger-Mutant 47% | Mutant Dominant Class ---------------- Mutant | -10/Materials Scavenger-Mutant | -9/Materials Resources | -11 -10 -9 ----------- Run | Yrd Mat Mat Matter Collected 367 | 218 149 . Remotely . | . . . Salvage Created 359 | 43 149 167 Parts 33 | 5 8 20 Haulers Intercepted . | . . . Recyclers Shooed 1 | . . 1 Parts Field Recycled . | . . . Retrieved Matter . | . . . Parts Self-Destructed . | . . . Prevented . | . . . Parts Restored . | . . . Kills | -11 -10 -9 ------- Run | Yrd Mat Mat Combat Hostiles Destroyed 11 | . 3 8 Guns 6 | . 3 3 AOE 5 | . . 5 Classes Destroyed 7 | 1 2 4 Worker 3 | . . 3 Tunneler 3 | 2 . 1 Operator 2 | . 1 1 Watcher 1 | . . 1 Swarmer 5 | . . 5 Grunt 4 | . 3 1 Sentry 2 | . . 2 Best Kill Streak 11 | 2 1 11 Combat Bots Only 5 | . 1 5 Max Kills in Single Turn 3 | 1 1 3 Gunslinging . | . . . Exploded 3 | . . 3 Melee . | . . . Uniques/NPCs Destroyed . | . . . Combat | -11 -10 -9 -------- Run | Yrd Mat Mat Hostile Shots Fired 102 | . 22 80 Missed 28 | . 4 24 Hits 74 | . 18 56 Projectile 74 | . 18 56 Critical Strikes 5 | . 1 4 Damage Taken 1103 | . 252 851 Core 456 | . 53 403 Absorbed by Shields . | . . . Core Remaining (%) 89 | 100 78 . Volleys Fired 53 | 7 20 26 Largest 2 | 2 2 2 Hottest 126 | 40 40 126 Shots Fired 93 | 14 40 39 Gun 80 | 14 40 26 Cannon 3 | . . 3 Launcher 10 | . . 10 Special . | . . . Kinetic 57 | 14 40 3 Thermal 26 | . . 26 Explosive 10 | . . 10 Electromagnetic . | . . . Robot Hit Streak 9 | 9 4 7 Robot Miss Streak 3 | 2 3 3 Penetration Max . | . . . Secondary Targets . | . . . Shots Hit Robots 62 | 10 26 26 Core Hits 36 | 2 11 23 Critical Kills . | . . . Critical Parts Destroyed . | . . . Critical Strikes . | . . . Melee Attacks . | . . . Impact . | . . . Slashing . | . . . Piercing . | . . . Sneak Attacks . | . . . Combat Hostiles . | . . . Follow-up Attacks . | . . . Damage Inflicted 1448 | 105 256 1087 Guns 663 | 105 254 304 Cannons 36 | . . 36 Explosions 734 | . . 734 Melee . | . . . Ramming 15 | . 2 13 Kinetic 395 | 105 254 36 Thermal 304 | . . 304 Explosive 734 | . . 734 Electromagnetic . | . . . Impact . | . . . Slashing . | . . . Piercing . | . . . Highest Corruption . | . . . Average Corruption . | . . . Corruption Purged . | . . . Corruption Blocked . | . . . Overload Shots . | . . . Overflow Damage 18 | . . 18 Projectiles . | . . . Explosions 18 | . . 18 Melee . | . . . Knockbacks . | . . . Impact . | . . . Kinetic . | . . . Secondary . | . . . Self-Inflicted Damage 110 | . . 110 Shots 5 | . . 5 Rammed 1 | . . 1 Targets Rammed 3 | . 1 2 Kicked 2 | . 1 1 Crushed . | . . . Highest Temperature 357 | . 34 357 Average Temperature 152 | . 12 198 Received Heat Transfer 483 | . 165 318 Effects 3 | . . 3 Shutdowns 1 | . . 1 Energy Bleed 1 | . . 1 Interference 1 | . . 1 Siege Activations . | . . . Martial Activations . | . . . Shielding Activations . | . . . Robots Disrupted . | . . . Combat Hostiles . | . . . Robots Corrupted . | . . . Combat Hostiles . | . . . Parts Fried . | . . . Impact Corruptions . | . . . Robots Melted . | . . . Combat Hostiles . | . . . Parts Melted 3 | . . 3 Heat Transferred 666 | . . 666 Parts Sabotaged . | . . . Parts Stolen . | . . . Parts Stripped . | . . . Power Chain Reactions . | . . . Alert | -11 -10 -9 ------- Run | Yrd Mat Mat Maximum Alert Level 1 | . . 1 Low Security (%) 95 | 100 100 91 Level 1 4 | . . 8 Level 2 . | . . . Level 3 . | . . . Level 4 . | . . . Level 5 . | . . . High Security . | . . . Max Security . | . . . Peak Influence 284 | 10 40 284 Initial . | . . . Average 24 | 1 10 40 Influence Increases 497 | 10 99 388 Destroy 0b10 Robot/C 220 | . 60 160 Destroy 0b10 Robot/NC 45 | 10 5 30 Destroy Leader 72 | . 20 52 Successful Hack 18 | . 14 4 Disable Machine 15 | . . 15 Destroy Structure 52 | . . 52 Lose Combat Pursuer 75 | . . 75 Influence Decreases 213 | 10 99 104 Time Decay 163 | 10 89 64 Lost Part 50 | . 10 40 Squads Dispatched 2 | . 1 1 Investigation . | . . . Extermination . | . . . Reinforcement 2 | . 1 1 Assault . | . . . Garrison . | . . . Intercept . | . . . Searches Triggered . | . . . Construction Impeded . | . . . Haulers Reinforced . | . . . Active Scanning Responses . | . . . Cargo Convoy Interrupts . | . . . Stealth | -11 -10 -9 --------- Run | Yrd Mat Mat Distress Signals 1 | . . 1 Communications Jammed . | . . . Distress Signals . | . . . Times Spotted 24 | . 4 20 Peak Tracking Total 8 | . 2 8 Tactical Retreats 2 | . . 2 Traps | -11 -10 -9 ------- Run | Yrd Mat Mat Traps Triggered 3 | . 3 . Indirectly . | . . . Trap Hack Attempts . | . . . Triggered . | . . . Disarmed . | . . . Reprogrammed . | . . . Reused . | . . . Traps Extracted . | . . . Installed . | . . . Triggered . | . . . Machines | -11 -10 -9 ---------- Run | Yrd Mat Mat Machines Disabled 1 | . . 1 Max in Single Turn 1 | . . 1 Machines Repaired . | . . . Machines Dismantled . | . . . Machines Sabotaged . | . . . Overloaded Fab Kills . | . . . Hacking | -11 -10 -9 --------- Run | Yrd Mat Mat Machines Accessed 5 | . 2 3 Terminals 3 | . 1 2 Fabricators . | . . . Repair Stations . | . . . Recycling Units 1 | . 1 . Scanalyzers 1 | . . 1 Garrison Access . | . . . Total Hacks 10 | . 4 6 Successful 8 | . 4 4 Failed 2 | . . 2 Catastrophic 1 | . . 1 Database Lockouts . | . . . Manual . | . . . Terminals 5 | . 1 4 Fabricators . | . . . Repair Stations . | . . . Recycling Units 3 | . 3 . Scanalyzers 2 | . . 2 Garrison Access . | . . . Terminal Hacks 4 | . 1 3 Robot Analysis 1 | . . 1 Dispatch Records 1 | . . 1 Zone Layout 2 | . 1 1 Fabricator Hacks . | . . . Repair Station Hacks . | . . . Recycling Unit Hacks 3 | . 3 . Process 1 | . 1 . Report Inventory 1 | . 1 . Retrieve Matter 1 | . 1 . Scanalyzer 1 | . . 1 Retrieve Study 1 | . . 1 Garrison Access Hacks . | . . . Unauthorized Hacks . | . . . Terminals . | . . . Fabricators . | . . . Repair Stations . | . . . Recycling Units . | . . . Scanalyzers . | . . . Garrison Access . | . . . Data Cores Recovered 1 | . . 1 Used . | . . . Hacking Detections 2 | . . 2 Full Trace Events . | . . . Feedback Events . | . . . Feedback Blocked . | . . . Robot Schematics Acquired . | . . . Robots Built . | . . . Authchips . | . . . Time . | . . . Total Robot Build Rating . | . . . Part Schematics Acquired . | . . . Parts Built . | . . . Authchips . | . . . Time . | . . . Total Part Build Rating . | . . . Part Studies Acquired 1 | . . 1 Parts Repaired . | . . . Time . | . . . Parts Recycled . | . . . Recycled Matter 11 | . 11 . Retrieved Matter 11 | . 11 . Retrieved Components . | . . . Parts Scanalyzed . | . . . Part Schematics Acquired . | . . . Parts Damaged . | . . . Bothacking | -11 -10 -9 ------------ Run | Yrd Mat Mat Used RIF Installer . | . . . Robots Hacked . | . . . Non-combat . | . . . Combat . | . . . Robot Hacks Applied . | . . . Relay Couplers Released . | . . . Fabnet Peak Effective % . | . . . Robots Rewired . | . . . Allies Hacked . | . . . Hacks Repelled . | . . . Allies | -11 -10 -9 -------- Run | Yrd Mat Mat Total Allies . | . . . Largest Group . | . . . Highest-Rated Group . | . . . Highest-Rated Ally . | . . . Total Orders . | . . . Ally Attacks . | . . . Total Damage . | . . . Kills . | . . . Allies Corrupted . | . . . Allies Melted . | . . . Intel | -11 -10 -9 ------- Run | Yrd Mat Mat Active Infowar (turns) 581 | 11 275 295 Seismic 581 | 11 275 295 Robot Analysis Total 1 | . . 1 Derelict Logs Recovered . | . . . Drone Launches . | . . . Drone Recoveries . | . . . Exploration | -11 -10 -9 ------------- Run | Yrd Mat Mat Turns Passed 720 | 88 275 357 Spaces Moved 474 | 65 165 244 Core 90 | 1 5 84 Treads . | . . . Legs 272 | . 112 160 Wheels 112 | 64 48 . Hover . | . . . Flight . | . . . Fastest Speed 50 | 50 80 50 Average Speed 98 | 80 119 90 Slowest Speed 250 | 95 250 120 Overloaded Moves . | . . . Propulsion Burnouts . | . . . Robots Hopped . | . . . Potential Cave-ins . | . . . Cave-ins Triggered . | . . . Exploration Rate (%) 19 | 3 27 29 Regions Visited 2 Branch Regions . Pre-discovered Areas . | . . . Known Exits Taken . | . . . Unknown Exits Taken 2 | 1 1 . Scrap Searched . | . . . Spaces Dug . | . . . Terrain Destroyed 54 | . . 54 Melee . | . . . Projectile . | . . . AOE 54 | . . 54 Terrain Rammed . | . . . Walls Destroyed . | . . . Machines Disabled . | . . . Actions | -11 -10 -9 --------- Run | Yrd Mat Mat Total 633 | 84 203 346 Wait 61 | . 7 54 Move 472 | 64 164 244 Hop . | . . . Pick Up 13 | 6 2 5 Fast Attach 17 | 7 7 3 Attach 4 | . . 4 Detach . | . . . Swap 2 | . 1 1 Drop 8 | . 1 7 Fire 53 | 7 20 26 Melee . | . . . Ram 1 | . . 1 Kick 2 | . 1 1 Crush . | . . . Escape Stasis . | . . . Rewire . | . . . Trap . | . . . Miscellaneous . | . . . Route ------- -11/Scrapyard -10/Materials (discovered 2 exits: *Mat / [*Min]) -9/Materials (discovered 1 exit: [*Min]) History --------- Turn | Location | Event 25 | -11/Scrapyard | Discovered new exit (range 15) 89 | -11/Scrapyard | Entered Materials 310 | -10/Materials | Discovered new exit (range 14) 325 | -10/Materials | Discovered new exit (range 16) 364 | -10/Materials | Entered another Materials area 364 | -9/Materials | Evolved 2 slots: Propulsion x2 542 | -9/Materials | Build established: Scavenger-Mutant 659 | -9/Materials | Released all parts (6) 671 | -9/Materials | Core integrity fell below 50% 677 | -9/Materials | Lost 4 parts (2p2n) 703 | -9/Materials | Core integrity fell below 20% 715 | -9/Materials | Discovered new exit (range 7) 721 | -9/Materials | Destroyed self with Mini Grenade Launcher Last Messages --------------- 00691_ Destroyed Lgt. Ion Engine. 00691_ K-01 Serf destroyed. 00691_ W-16 Scout destroyed. 00692_ U-05 Engineer lays Concrete. 00693_ U-05 Engineer builds a Wall. 00693_ Y-45 Defender destroyed. 00693_ K-01 Serf destroyed. 00694_ U-05 Engineer lays Concrete. 00695_ U-05 Engineer forms the Earth. 00696_ R-06 Scavenger collects Wheel. 00702_ O-16 Technician: "IFF HANDSHAKE FAILED. SECURING TERMINAL." 00704_ O-16 Technician destroyed. 00709_ Acquired data core, extracted dynamic key. 00709_ Decrypted 8 local trap positions from data. 00712_ The unstable cave ceiling collapses. 00715_ EXIT=FOUND 00719_ Terminal disabled. Map ----- +----------------------------------------------------+ | | | | | | | | | | | | | | | ????????????????????????????????? | | ????????????????????????????????? | | ????????????????????????????????? | | ????????????????????????##??????? | | ??????????????????????? +?^??^?? | | ??????????????????????? #^?????? | | ??????????????????????? #^?????? | | ???????#####??????????? #??????? | | ??????##"""##????????? +??????? | | ?????##"!!!"##???????? #??????? | | ?????#"" ""#???????? #??????? | | ?????# #?####### #??????? | | ?????# < #?# #????##? | | ??#### #?# #??? +? | | ?## # #?# ### #? | | ?# #??# +? | | # #???# #? | | # Y ##### #? | | " @ #? | | " #? | | # "T #? | | # "" #####+## #? | | # "" #??^????# ###########? | | # ????????# ############ | | # ?????^^?# """T""" # | | # ?????????# + # | | # """?????????## # """ !! # | | # """???^??????# # """ ! | | # ""???????????# # """ ! | | #???????????????# + | | ????????????????# # | | ????????????????# ####### | | ???????????????# ??????# | | ???????????????# ?? = | | ???????????????+ | | ???????????????# ? # | | ???????????#???# ###??###+### | | ???????????# ??## ##??????????? | | ????????#### #### ????????????? | | ???????? !! #???????????? | | ???????? != #???????????? | | ????????? #???????????? | | ??????????# #???????????? | +----------------------------------------------------+ Best States ------------- Heat Dissipation 28 Energy Generation 14 Energy Capacity 250 Matter Stores 289 Matter Capacity 300 Sight Range 16 Terrain Scan Density 10 Evasion (%) 55 Item Schematics ----------------- None Robot Schematics ------------------ None Fabricated ------------ Nothing Repaired ---------- Nothing Studied --------- Aluminum Leg | -9/Materials | Hacked Alien Tech Used ----------------- None Achievements -------------- None Challenges ------------ None Game ------ Seed GravmagSuperquantumChip Manual? 0 Play Time 00:10:46 Cumulative 25.5 hours Start 2026.04.20 @ 03:37:49 End 2026.04.20 @ 03:47:01 Sessions 1 Manual Loads 0 Difficulty Rogue Special Mode None Game No. 48 Rogue 48 Adventurer 0 Explorer 0 Win Type - Total 0 Types 0/0/0/0/0/0/0/0/0/0 Lore% 23 Gallery% 25 Achievement% 21 Wizard Run 0 Options --------- Layout 1 ASCII 0 Keyboard 0 Movement Vi Keybinds 0 Fullscreen 1 Font 24/Proggy Map View 50x40 Zoom Use 0% Tactical HUD 1 Map Filters NONE Filters NONE Steam 1 RUN: d12cceee-bd9a-43c9-85df-f2981d653562